bitfinex-derivatives/quotes_ETHF0:USTF0_20250810
["timestamp","ask_amount","ask_price","bid_price","bid_amount"]
[1754814689287,0.52759554,4209.4,4208.6,1.2484]
[1754814689288,0.6503,4208.7,4208.6,1.2484]
[1754814689487,1.3483,4208.7,4208.6,1.2484]
[1754814689683,1.3483,4208.7,4208.6,1.5027]
[1754814691090,1.6357,4208.7,4208.6,1.5027]
[1754814691991,0.2551,4208.7,4208.6,0.6476]
[1754814692389,1.6357,4208.7,4208.6,0.3933]
[1754814692691,1.3483,4208.7,4208.6,1.5027]
[1754814692879,0.8406,4208.7,4208.6,1.5027]
[1754814693190,0.47515,4208.8,4208.6,1.5027]
[1754814693385,0.47514,4208.9,4208.7,0.2016]
[1754814693590,0.47514,4208.9,4208.8,1.5027]
[1754814694593,0.47514,4209.0,4208.8,1.5027]
[1754814694891,0.47514,4209.0,4208.9,1.5027]
[1754814696387,1.83144,4209.0,4208.9,1.5027]
[1754814696693,2.11794,4209.0,4208.9,0.983]
[1754814696896,1.40796,4208.7,4208.6,1.4687]
[1754814697493,1.82276,4208.7,4208.6,1.4687]
[1754814698390,1.3476,4208.7,4208.6,1.4687]
[1754814698591,1.82276,4208.7,4208.6,1.4687]
[1754814698991,1.0564,4208.7,4208.6,1.4687]
[1754814699293,1.53155,4208.8,4208.7,1.4687]
[1754814699497,0.47515,4208.9,4208.7,0.6405]
[1754814699794,0.47515,4208.9,4208.8,1.4687]
[1754814700091,0.47514,4209.0,4208.8,1.4687]
[1754814700294,1.14904,4209.0,4208.9,1.4687]
[1754814700491,0.73424,4209.0,4208.9,1.4687]
[1754814700998,0.47514,4209.0,4208.9,1.4687]
[1754814701795,1.14904,4209.0,4208.9,1.4687]
[1754814702799,0.47512,4209.2,4209.1,0.6405]
[1754814702994,0.4148,4209.5,4209.1,0.6405]
[1754814703195,1.20145076,4209.5,4209.4,1.2025]
[1754814703397,0.6739,4209.5,4209.4,1.4687]
[1754814704103,1.14897,4209.5,4209.4,1.4687]
[1754814704798,1.67652076,4209.5,4209.4,1.4687]
[1754814705296,0.52755076,4209.5,4209.4,1.4687]
[1754814705494,3.2078,4209.6,4209.5,1.4687]
[1754814706198,3.4669,4209.6,4209.5,1.4687]
[1754814706394,3.2078,4209.6,4209.5,1.4687]
[1754814706699,0.47506,4209.7,4209.6,1.4687]
[1754814706901,0.2912,4209.9,4209.6,0.6405]
[1754814707200,1.1617,4209.9,4209.8,1.4687]
[1754814707799,1.3476,4209.9,4209.8,1.4687]
[1754814708004,1.0564,4209.9,4209.8,1.4687]
[1754814708205,1.3476,4209.9,4209.8,1.4687]
[1754814709499,1.0564,4209.9,4209.8,1.4687]
[1754814710200,1.3476,4209.9,4209.8,1.4687]
[1754814711095,0.2591,4209.9,4209.8,1.4687]
[1754814712198,0.6739,4209.9,4209.8,1.4687]
[1754814713294,0.52755076,4210.1,4210.0,0.6405]
[1754814713598,3.2078,4210.2,4210.1,0.8282]
[1754814713801,4.5554,4210.2,4210.1,1.4687]
[1754814714100,5.08206127,4210.2,4210.1,1.4687]
[1754814714296,5.36856127,4210.2,4210.1,1.4687]
[1754814714502,5.08206127,4210.2,4210.1,1.4687]
[1754814714690,1.0564,4209.6,4209.2,0.2839]
[1754814714896,1.3476,4209.1,4209.0,1.4687]
[1754814715395,0.6416,4208.7,4208.6,1.4687]
[1754814715599,1.0564,4208.7,4208.6,1.4687]
[1754814716601,1.3476,4208.7,4208.6,1.4687]
[1754814717705,1.6341,4208.7,4208.6,1.4687]
[1754814718302,0.2591,4208.7,4208.6,1.4687]
[1754814718496,0.6739,4208.7,4208.6,1.4687]
[1754814718804,1.0564,4208.7,4208.6,1.4687]
[1754814719001,1.6341,4208.7,4208.6,0.9367]
[1754814719198,1.6341,4208.7,4208.6,1.4687]
[1754814720004,0.2591,4208.7,4208.6,1.4687]
[1754814720806,0.7469,4208.8,4208.7,1.2802]
[1754814721106,1.3476,4208.8,4208.7,1.4687]
[1754814722601,0.47512,4209.1,4208.7,0.6405]
[1754814722905,1.6341,4208.9,4208.8,0.6405]
[1754814723300,1.3476,4208.9,4208.8,0.6405]
[1754814723507,1.3476,4208.9,4208.8,1.4687]
[1754814725499,0.2865,4209.3,4208.8,0.6405]
[1754814725500,0.4751,4209.3,4208.8,0.6405]
[1754814725803,1.3223,4209.0,4208.9,1.4745]
[1754814726705,1.79743,4209.0,4208.9,1.4745]
[1754814726899,1.3223,4209.0,4208.9,1.4745]
[1754814727606,1.0653,4208.7,4208.6,0.4766]
[1754814727904,1.6003,4208.7,4208.6,1.2158]
[1754814728106,1.3223,4208.7,4208.6,1.4745]
[1754814728302,1.79746,4208.7,4208.6,1.4745]
[1754814728704,2.07546,4208.7,4208.6,1.4745]
[1754814728904,1.6003,4208.7,4208.6,1.4745]
[1754814729508,1.6003,4208.7,4208.6,1.2158]
[1754814729904,1.6003,4208.7,4208.5,3.2078]
[1754814730108,0.6454,4208.7,4208.5,3.2078]
[1754814730408,1.3223,4208.6,4208.5,4.6823]
[1754814731110,1.6003,4208.6,4208.5,4.6823]
[1754814731804,1.3223,4208.6,4208.5,4.6823]
[1754814733004,1.6003,4208.6,4208.5,4.1582]
[1754814733502,1.6003,4208.6,4208.5,3.868]
[1754814733813,1.6003,4208.6,4208.5,4.1582]
[1754814735414,2.07548,4208.6,4208.5,3.2078]
[1754814735713,2.07548,4208.6,4208.5,3.4858]
[1754814735909,1.6003,4208.6,4208.5,3.4858]
[1754814736211,1.6003,4208.6,4208.5,3.2078]
[1754814736812,1.6003,4208.6,4208.5,3.4858]
[1754814739606,2.07548,4208.6,4208.5,3.4858]
[1754814739810,1.6003,4208.6,4208.5,3.4858]
[1754814740018,1.6003,4208.6,4208.5,3.2078]
[1754814742314,1.6003,4208.6,4208.5,3.4858]
[1754814742826,1.6003,4208.6,4208.5,4.4236]
[1754814746022,1.6003,4208.6,4208.5,4.1582]
[1754814746624,1.6003,4208.6,4208.5,3.868]
[1754814746823,1.6003,4208.6,4208.5,3.6844]
[1754814748326,1.6003,4208.6,4208.5,3.9746]
[1754814748625,1.6003,4208.6,4208.5,3.2078]
[1754814749019,2.07554,4208.0,4207.9,3.4858]
[1754814749218,2.07554,4208.0,4207.9,3.6844]
[1754814749523,2.07554,4208.0,4207.9,4.1582]
[1754814749926,2.07554,4208.0,4207.9,4.4236]
[1754814750322,2.07554,4208.0,4207.9,3.868]
[1754814750521,2.07554,4208.0,4207.9,3.2078]
[1754814751422,2.07558,4207.7,4207.6,0.9504]
[1754814751927,2.07558,4207.7,4207.6,1.4745]
[1754814752724,1.3109059,4208.3,4208.2,0.3822]
[1754814752921,1.5889059,4208.3,4208.2,1.2158]
[1754814753325,0.73221,4208.3,4208.2,1.4745]
[1754814753526,1.12121,4208.3,4208.2,1.4745]
[1754814753726,1.40911,4208.3,4208.2,1.4745]
[1754814754327,1.12121,4208.3,4208.2,1.4745]
[1754814754724,1.40911,4208.3,4208.2,1.4745]
[1754814755126,1.79751,4208.3,4208.2,1.4745]
[1754814755517,1.79751,4208.3,4207.8,3.8487]
[1754814755518,1.79126,4207.9,4207.8,3.8487]
[1754814755722,2.07366,4207.9,4207.8,3.8487]
[1754814756228,2.07366,4207.9,4207.8,0.4588]
[1754814756636,1.79129,4207.6,4207.5,0.4588]
[1754814756825,2.07369,4207.6,4207.5,0.4588]
[1754814757519,2.07369,4207.6,4207.5,0.9259]
[1754814757721,1.5984,4207.4,4207.3,3.2078]
[1754814757918,1.5984,4207.4,4207.3,3.6666]
[1754814758129,1.5984,4207.4,4207.3,4.3996]
[1754814758620,1.5984,4207.4,4207.3,3.4879]
[1754814759021,1.5984,4207.4,4207.3,3.6666]
[1754814759227,0.6431,4207.1,4207.0,0.6409]
[1754814759427,1.5984,4207.1,4207.0,0.9259]
[1754814759729,1.5984,4207.1,4207.0,0.4588]
[1754814760030,0.8549,4207.1,4207.0,0.4588]
[1754814760225,1.316,4207.1,4207.0,1.4556]
[1754814760728,1.5984,4207.1,4207.0,1.4556]
[1754814761130,1.5984,4207.1,4207.0,0.6409]
[1754814761529,1.5984,4207.1,4207.0,0.9259]
[1754814762629,1.5984,4207.1,4207.0,1.4556]
[1754814762831,0.47531,4207.4,4207.1,0.2801]
[1754814763021,0.47531,4207.5,4207.3,0.6246]
[1754814763225,3.68309,4207.6,4207.5,1.4556]
[1754814763425,3.2078,4207.6,4207.5,1.4556]
[1754814763627,0.392,4208.1,4207.5,3.8324]
[1754814763821,1.51033,4208.1,4208.0,0.6246]
[1754814764031,1.79123,4208.1,4208.0,1.4556]
[1754814764221,2.07363,4208.1,4208.0,1.4556]
[1754814764426,1.79127,4207.8,4207.7,1.4556]
[1754814764621,2.07367,4207.8,4207.7,1.4556]
[1754814766429,2.07367,4207.8,4207.7,0.2801]
[1754814766822,0.4458,4207.6,4207.5,3.2078]
[1754814767023,1.5984,4207.6,4207.5,3.2078]
[1754814767235,0.6431,4207.2,4207.1,0.3608]
[1754814767535,1.316,4207.2,4207.1,0.6267]
[1754814767833,1.316,4207.2,4207.1,0.8905]
[1754814768029,1.79134,4207.2,4207.1,1.4556]
[1754814768233,1.79134,4207.2,4206.9,3.2078]
[1754814768532,2.0737,4207.5,4207.4,0.1787]
[1754814768728,2.0737,4207.5,4207.4,0.3608]
[1754814768934,2.0737,4207.5,4207.4,0.9259]
[1754814769127,1.7913,4207.5,4207.4,1.4556]
[1754814771032,2.0737,4207.5,4207.4,1.4556]
[1754814771335,2.0737,4207.5,4207.4,0.9259]
[1754814772223,2.0737,4207.5,4207.4,1.1918]
[1754814772430,2.0737,4207.5,4207.4,0.4588]
[1754814772728,0.4753,4207.5,4207.4,1.4556]
[1754814773333,0.47528,4207.7,4207.4,1.4556]
[1754814773531,3.4734,4207.8,4207.7,1.4556]
[1754814773932,3.8654,4207.8,4207.7,1.4556]
[1754814774438,3.2078,4207.8,4207.7,1.4556]
[1754814775732,3.2078,4207.8,4207.7,0.6409]
[1754814775930,3.2078,4207.8,4207.7,1.1918]
[1754814776130,3.2078,4207.8,4207.7,1.4556]
[1754814776633,0.47525,4208.0,4207.7,1.4556]
[1754814776835,0.6576,4207.9,4207.8,1.4556]
[1754814777036,0.8549,4207.9,4207.8,1.4556]
[1754814777239,1.1358,4207.9,4207.8,1.4556]
[1754814777736,1.316,4207.9,4207.8,1.4556]
[1754814780338,1.5984,4207.9,4207.8,1.4556]
[1754814780534,1.5984,4207.5,4207.4,0.4588]
[1754814780734,1.5984,4207.5,4207.4,0.9259]
[1754814780929,1.5984,4207.5,4207.4,1.1918]
[1754814781135,2.0737,4207.5,4207.4,1.1918]
[1754814781334,2.0737,4207.5,4207.4,1.4556]
[1754814781539,1.7913,4207.5,4207.4,1.4556]
[1754814782338,1.7913,4207.5,4207.4,0.9885]
[1754814782541,0.6729,4208.1,4207.4,0.6246]
[1754814782734,13.13264,4208.0,4207.9,0.9259]
[1754814782934,13.65925591,4208.0,4207.9,0.4588]
[1754814783334,13.65925591,4208.0,4207.9,0.9259]
[1754814783835,0.47529,4207.6,4207.5,0.285]
[1754814784038,1.11839,4207.6,4207.5,0.6458]
[1754814784340,1.79129,4207.6,4207.5,0.9117]
[1754814784542,0.392,4207.3,4207.1,0.5651]
[1754814784838,0.392,4207.3,4207.2,1.4556]
[1754814784839,0.6431,4207.3,4207.2,1.4556]
[1754814785044,0.3775,4207.1,4207.0,3.8324]
[1754814785342,1.2985,4207.1,4207.0,4.3655]
[1754814785736,1.2985,4207.1,4207.0,4.6355]
[1754814786039,0.86023,4207.3,4207.0,4.1058]
[1754814786238,1.2699,4207.1,4207.0,4.6366]
[1754814786437,1.542,4207.1,4207.0,4.6366]
[1754814787342,1.542,4207.1,4207.0,3.6565]
[1754814788032,1.542,4207.1,4207.0,0.27]
[1754814788631,1.542,4207.1,4207.0,0.456]
[1754814789242,1.542,4207.1,4207.0,0.27]
[1754814789745,1.542,4207.1,4207.0,0.456]
[1754814790131,0.8866,4207.1,4206.5,3.2078]
[1754814790337,2.01739,4206.7,4206.6,0.456]
[1754814790539,2.01739,4206.7,4206.5,3.2078]
[1754814790743,1.542,4206.6,4206.5,3.4778]
[1754814791141,1.542,4206.6,4206.5,0.27]
[1754814791442,0.6145,4206.4,4206.3,0.4532]
[1754814791641,1.542,4206.4,4206.3,0.456]
[1754814791842,1.542,4206.1,4206.0,3.8559]
[1754814792041,0.47552,4205.6,4205.5,3.2078]
[1754814792244,0.6145,4206.1,4206.0,0.1921]
[1754814792446,1.2715,4206.1,4206.0,1.3141]
[1754814792938,0.92325,4206.2,4206.1,0.8576]
[1754814793140,2.01745,4206.2,4206.1,1.3141]
[1754814794153,1.542,4206.2,4206.1,1.5841]
[1754814794342,0.8866,4206.2,4206.1,1.5841]
[1754814794648,0.4478,4206.4,4206.3,0.6425]
[1754814794845,0.2721,4206.4,4206.3,1.5841]
[1754814795045,3.4783,4206.8,4206.3,0.6425]
[1754814795248,0.2721,4206.6,4206.5,0.9125]
[1754814795445,0.4478,4206.6,4206.5,1.5841]
[1754814796653,4.7498,4206.8,4206.7,1.5841]
[1754814797353,0.4478,4206.8,4206.7,1.5841]
[1754814797950,1.542,4206.8,4206.7,1.5841]
[1754814798553,0.74745,4207.1,4206.7,1.5841]
[1754814798755,2.01735,4207.1,4207.0,0.9125]
[1754814799054,1.542,4207.1,4207.0,1.3141]
[1754814802857,1.542,4207.1,4206.5,3.68321]
[1754814802858,0.2721,4207.0,4206.6,0.2672]
[1754814803059,1.542,4207.0,4206.9,0.9125]
[1754814803761,1.542,4207.0,4206.9,1.5841]
[1754814803959,1.542,4207.0,4206.9,1.3141]
[1754814804966,1.542,4207.0,4206.9,0.6425]
[1754814805164,1.542,4207.0,4206.9,0.4565]
[1754814805365,1.542,4207.0,4206.9,0.1921]
[1754814805959,1.542,4207.0,4206.7,1.0469]
[1754814805960,1.542,4206.8,4206.7,1.0469]
[1754814806159,1.542,4206.8,4206.7,1.5841]
[1754814806360,0.8866,4206.8,4206.7,1.5841]
[1754814806568,0.4478,4206.8,4206.7,1.5841]
[1754814806863,0.2721,4206.8,4206.7,1.5841]
[1754814807868,0.4478,4206.8,4206.7,1.5841]
[1754814809967,1.0879,4206.8,4206.7,1.5841]
[1754814810168,1.542,4206.8,4206.7,1.5841]
[1754814810664,1.542,4206.8,4206.5,3.2078]
[1754814810665,1.79624082,4207.2,4207.1,1.5841]
[1754814810865,1.2699,4207.2,4207.1,1.5841]
[1754814811070,1.542,4207.2,4207.1,1.5841]
[1754814811366,2.068823,4207.2,4207.1,1.5841]
[1754814811566,1.542,4207.2,4207.1,1.5841]
[1754814812264,0.6145,4207.5,4207.4,0.6425]
[1754814812466,1.542,4207.5,4207.4,1.3141]
[1754814812662,1.542,4207.5,4207.4,0.7237]
[1754814812863,1.542,4207.5,4207.4,0.9097]
[1754814813168,1.0879,4207.5,4207.4,1.5841]
[1754814813370,1.542,4207.5,4207.4,1.5841]
[1754814813969,0.1757,4207.5,4207.4,0.6425]
[1754814814172,0.4478,4207.5,4207.4,0.6425]
[1754814814567,0.4478,4207.5,4207.4,1.5841]
[1754814814863,1.2715,4207.5,4207.4,1.5841]
[1754814815065,0.47531,4207.4,4207.0,3.2078]
[1754814815267,1.542,4207.2,4207.1,1.3141]
[1754814815465,0.93905,4207.1,4207.0,3.2078]
[1754814815771,2.06775,4207.1,4207.0,3.2078]
[1754814816168,2.06778,4206.9,4206.8,0.4661]
[1754814816470,2.06778,4206.9,4206.8,1.2895]
[1754814816676,0.2814,4207.0,4206.9,0.9464]
[1754814816975,1.3271,4207.0,4206.9,1.5678]
[1754814817271,1.5924,4207.0,4206.9,1.5678]
[1754814817668,0.2814,4207.5,4206.9,0.9053]
[1754814817876,1.5924,4207.0,4206.9,0.1822]
[1754814818170,0.47537,4206.9,4206.7,0.2839]
[1754814818471,1.5924,4206.6,4206.5,3.2078]
[1754814819071,0.47539,4206.7,4205.9,0.2839]
[1754814819072,2.06786,4206.1,4206.0,3.39]
[1754814819274,2.25998035,4206.1,4206.0,3.39]
[1754814820470,2.25998035,4206.1,4206.0,3.2078]
[1754814821372,1.5924,4205.7,4205.6,1.2895]
[1754814821671,1.5924,4205.5,4205.4,4.1131]
[1754814822475,1.5924,4205.5,4205.4,3.2078]
[1754814822681,1.5924,4205.5,4204.5,0.47564]
[1754814822682,1.5924,4205.0,4204.9,4.4973]
[1754814822981,1.5924,4205.0,4204.9,4.7756]
[1754814823172,3.2078,4205.8,4205.7,0.6214]
[1754814823371,1.1382,4205.9,4205.8,1.3856]
[1754814823577,1.3271,4205.9,4205.8,1.5678]
[1754814824178,1.5924,4205.9,4205.8,1.5678]
[1754814824375,0.934,4205.9,4205.8,1.5678]
[1754814824778,1.5924,4206.1,4205.4,3.8759]
[1754814824972,1.4029,4206.0,4205.9,0.1822]
[1754814825173,0.934,4206.0,4205.9,1.2895]
[1754814825480,0.4709,4206.2,4206.1,0.6214]
[1754814825982,0.7451,4206.2,4206.1,1.2895]
[1754814826177,1.3271,4206.2,4206.1,1.5678]
[1754814826582,1.5924,4206.2,4206.1,1.5678]
[1754814826875,0.6526,4206.2,4206.1,0.6214]
[1754814827081,0.6526,4206.2,4206.1,1.5678]
[1754814827484,1.5924,4206.2,4206.1,1.5678]
[1754814827876,3.2078,4206.3,4206.1,2.04326]
[1754814828079,4.1257,4207.0,4206.9,0.6214]
[1754814828273,4.1257,4207.0,4206.9,1.5678]
[1754814828274,4.5188,4207.0,4206.9,1.5678]
[1754814828484,4.2535,4207.0,4206.9,1.5678]
[1754814828779,4.5349,4207.0,4206.9,1.5678]
[1754814828989,4.1418,4207.0,4206.9,1.2895]
[1754814829185,4.1418,4207.0,4206.9,1.5678]
[1754814829383,3.2078,4207.0,4206.9,1.5678]
[1754814829779,3.4892,4207.0,4206.9,1.5678]
[1754814829975,3.6787,4207.0,4206.9,1.5678]
[1754814830182,3.2078,4207.0,4206.9,1.5678]
[1754814830688,0.934,4207.4,4207.3,0.6214]
[1754814830883,0.934,4207.4,4207.3,1.5678]
[1754814830884,1.5924,4207.4,4207.3,1.5678]
[1754814831693,0.4709,4207.4,4207.3,1.5678]
[1754814831992,0.7451,4207.4,4207.3,1.5678]
[1754814832596,11.044,4207.9,4207.1,0.47534]
[1754814832597,0.2814,4208.1,4208.0,0.6214]
[1754814832797,0.4709,4208.1,4208.0,1.5678]
[1754814833102,0.7451,4208.1,4208.0,1.5678]
[1754814833294,0.6526,4207.8,4207.7,3.8598]
[1754814833495,1.5924,4207.8,4207.7,4.4973]
[1754814833696,0.52645968,4208.2,4207.7,0.47527]
[1754814833996,1.5924,4207.8,4207.7,1.2895]
[1754814834197,1.5924,4207.8,4207.7,0.9053]
[1754814834393,0.934,4207.8,4207.7,1.2895]
[1754814834599,1.3271,4207.8,4207.7,1.5678]
[1754814834901,1.37375968,4208.2,4208.1,1.2895]
[1754814835103,0.52645968,4208.2,4208.1,1.5678]
[1754814835399,5.06135968,4208.6,4208.5,2.04299]
[1754814835698,0.934,4208.9,4208.8,2.04295]
[1754814836104,0.7451,4208.9,4208.8,2.04295]
[1754814836300,0.6526,4209.3,4209.2,0.6573]
[1754814836597,1.0457,4209.3,4209.2,1.3748]
[1754814836793,0.4637,4209.7,4209.6,0.8997]
[1754814836998,0.7451,4209.7,4209.6,1.5678]
[1754814837200,0.934,4209.7,4209.6,1.5678]
[1754814837397,1.5924,4209.7,4209.6,1.5678]
[1754814837598,0.6526,4209.7,4209.6,1.5678]
[1754814837905,0.934,4209.7,4209.6,1.5678]
[1754814838097,0.7451,4209.7,4209.6,1.5678]
[1754814838499,1.45937196,4210.0,4209.9,0.6214]
[1754814838696,0.934,4210.0,4209.9,1.5678]
[1754814839102,1.3271,4210.0,4209.9,1.5678]
[1754814839299,0.4709,4210.0,4209.9,1.5678]
[1754814839604,1.5924,4210.0,4209.9,1.5678]
[1754814840303,3.2078,4210.1,4209.9,1.2895]
[1754814840506,4.8002,4210.1,4210.0,1.5678]
[1754814840706,4.8002,4210.1,4210.0,1.2895]
[1754814841902,4.8002,4210.1,4210.0,1.5678]
[1754814842101,4.5349,4210.1,4210.0,1.5678]
[1754814842501,0.2814,4210.4,4209.7,3.2078]
[1754814842806,0.2814,4210.5,4210.3,1.09638]
[1754814843006,0.4709,4210.5,4210.4,1.5678]
[1754814843196,3.2078,4210.6,4210.4,0.6214]
[1754814843396,3.6787,4210.6,4210.5,1.5678]
[1754814843607,4.8002,4210.6,4210.5,1.5678]
[1754814844203,4.1418,4210.6,4210.5,1.5678]
[1754814844803,3.9529,4210.6,4210.5,1.5678]
[1754814845004,4.1418,4210.6,4210.5,1.5678]
[1754814845307,4.8002,4210.6,4210.5,1.5678]
[1754814845504,4.8002,4210.6,4210.5,1.2895]
[1754814845710,4.8002,4210.6,4210.5,0.6214]
[1754814845910,4.8002,4210.6,4210.5,1.3098]
[1754814846406,4.346,4210.6,4210.5,1.3098]
[1754814846603,1.1382,4210.6,4210.5,1.5734]
[1754814846905,1.6051,4210.6,4210.5,1.5734]
[1754814847108,0.47492,4210.9,4210.5,1.5734]
[1754814847304,0.7171,4210.6,4210.5,1.5734]
[1754814847609,1.5999,4210.6,4210.5,1.5734]
[1754814847807,3.2078,4211.1,4210.5,2.04836]
[1754814848003,0.9051,4211.0,4210.9,0.6375]
[1754814848203,1.5999,4211.0,4210.9,1.5895]
[1754814848607,1.5999,4211.0,4210.9,1.3259]
[1754814849409,0.44,4210.3,4210.2,3.2078]
[1754814849709,1.5999,4210.3,4210.2,4.7973]
[1754814850009,1.321,4210.3,4210.2,4.7973]
[1754814850209,0.9051,4210.3,4210.2,4.7973]
[1754814850405,0.7171,4210.3,4210.2,4.7973]
[1754814850805,1.5999,4210.6,4210.5,0.6375]
[1754814851007,1.5999,4210.6,4210.5,1.5895]
[1754814851910,0.9719,4210.8,4210.5,0.6375]
[1754814852106,0.4499,4210.7,4210.6,1.5895]
[1754814852510,0.7171,4210.7,4210.6,1.5895]
[1754814853612,0.9051,4210.7,4210.6,1.5895]
[1754814853814,1.5999,4210.3,4210.2,4.5337]
[1754814855012,1.5999,4210.3,4210.2,4.7973]
[1754814857519,1.5999,4210.4,4210.3,1.5895]
[1754814857717,1.5999,4210.4,4210.3,1.3259]
[1754814858014,1.5999,4210.4,4210.3,0.182]
[1754814859416,0.628,4210.3,4209.7,0.2697]
[1754814859614,1.71088692,4211.0,4210.0,0.182]
[1754814859615,2.07491,4210.1,4210.0,0.182]
[1754814859816,2.07491,4210.1,4210.0,0.3694]
[1754814860017,2.07491,4210.1,4210.0,1.3259]
[1754814860918,2.07491,4210.1,4210.0,1.5895]
[1754814861220,0.2771,4210.4,4210.3,1.5895]
[1754814861810,0.2771,4210.6,4210.3,0.6375]
[1754814862015,0.4499,4210.6,4210.5,1.5895]
[1754814862713,0.75204,4210.7,4210.6,1.1378]
[1754814862920,2.07484,4210.7,4210.6,1.3259]
[1754814863322,1.5999,4210.4,4210.3,1.3259]
[1754814864013,0.4499,4210.4,4210.3,1.5895]
[1754814864213,0.6379,4210.4,4210.3,1.3259]
[1754814864419,1.5999,4210.4,4210.3,1.5895]
[1754814864618,0.4499,4210.5,4210.4,1.5895]
[1754814864814,1.5999,4210.5,4210.4,1.5895]
[1754814865618,1.5999,4210.5,4210.4,1.3259]
[1754814866222,0.47494,4210.8,4210.7,0.6375]
[1754814866418,2.07484,4210.8,4210.7,1.3259]
[1754814866621,2.07484,4210.8,4210.7,1.5895]
[1754814867721,1.5999,4210.8,4210.7,1.3259]
[1754814867919,1.5999,4210.8,4210.7,1.5895]
[1754814869220,1.321,4210.8,4210.7,1.5895]
[1754814869522,0.9051,4210.8,4210.7,1.5895]
[1754814869925,0.7171,4210.8,4210.7,1.5895]
[1754814870113,0.52443155,4211.1,4211.0,0.74301]
[1754814870318,2.12433155,4211.4,4211.3,2.06437]
[1754814870518,1.5999,4211.4,4211.3,2.06437]
[1754814871522,0.6948,4211.3,4210.9,0.2697]
[1754814871824,1.5999,4211.0,4210.9,1.3259]
[1754814872230,0.628,4211.0,4210.6,0.6884]
[1754814872429,1.5999,4210.7,4210.6,1.3259]
[1754814872621,0.9719,4211.6,4210.6,1.3259]
[1754814872822,1.49633155,4211.7,4211.2,0.6884]
[1754814873019,0.628,4211.3,4211.2,0.6375]
[1754814873222,1.5999,4211.3,4211.2,0.6375]
[1754814873422,0.9719,4211.6,4211.3,0.47487]
[1754814873623,1.5999,4211.4,4211.3,1.80077]
[1754814874026,1.5999,4211.4,4211.3,2.06437]
[1754814876018,1.5999,4211.4,4211.3,1.80077]
[1754814876225,1.5999,4211.4,4211.3,1.79407]
[1754814876529,1.5999,4211.4,4211.3,2.06997]
[1754814877720,0.94793155,4211.7,4211.6,0.47484]
[1754814877925,1.556,4211.7,4211.6,1.78444]
[1754814878123,2.08043155,4211.7,4211.6,1.78444]
[1754814879232,2.08043155,4211.7,4211.6,1.3096]
[1754814879427,2.08043155,4211.7,4211.6,0.8906]
[1754814879826,1.556,4211.6,4211.5,0.83095]
[1754814880024,1.556,4211.6,4211.5,1.78445]
[1754814880825,0.876,4211.6,4211.5,1.78445]
[1754814881025,1.556,4211.6,4211.5,1.78445]
[1754814881932,1.556,4211.6,4211.5,2.06035]
[1754814882524,1.556,4211.6,4211.5,1.3096]
[1754814882926,1.556,4211.6,4211.5,0.7069]
[1754814883125,0.6048,4211.6,4211.4,0.47486]
[1754814883320,1.556,4211.5,4211.4,0.90276]
[1754814883524,1.556,4211.5,4211.4,1.3096]
[1754814884832,1.556,4211.5,4211.4,1.5855]
[1754814885134,1.2815,4211.5,4211.4,1.5855]
[1754814886332,1.556,4211.5,4211.4,1.5855]
[1754814888638,0.97693155,4212.3,4212.2,1.5855]
[1754814888838,0.52443155,4212.8,4212.6,0.47473]
[1754814889032,0.284297,4213.1,4213.0,1.3096]
[1754814889227,1.399197,4213.1,4213.0,1.5855]
[1754814889436,1.124697,4213.1,4213.0,1.5855]
[1754814889634,0.013097,4213.1,4213.0,1.5855]
[1754814889835,0.013097,4213.1,4213.0,4.7933]
[1754814889836,0.284297,4213.1,4213.0,4.7933]
[1754814890036,1.569097,4213.1,4213.0,4.7933]
[1754814890430,0.013097,4213.1,4213.0,4.7933]
[1754814890635,0.4411,4214.2,4213.8,0.4627]
[1754814890841,0.3512,4214.2,4214.1,0.6351]
[1754814891134,3.6427,4215.0,4214.9,0.6351]
[1754814891440,0.9512,4214.9,4214.2,0.9504]
[1754814891740,0.876,4214.4,4214.3,2.06004]
[1754814891941,2.08125959,4214.9,4214.4,0.9504]
[1754814892241,0.52525959,4214.9,4214.8,1.5855]
[1754814892435,1.556,4214.9,4214.8,1.3096]
[1754814892736,0.3512,4214.4,4214.3,0.6116]
[1754814893043,1.556,4214.4,4214.3,1.5855]
[1754814893340,1.556,4214.4,4214.3,1.3096]
[1754814893530,1.556,4214.2,4214.1,3.2078]
[1754814894134,0.68,4213.9,4213.0,0.2759]
[1754814894440,0.2745,4213.4,4213.0,1.5855]
[1754814894636,0.4444,4213.4,4213.3,0.6351]
[1754814894837,0.4444,4213.4,4213.3,1.5855]
[1754814895539,1.2848,4213.9,4213.8,0.6351]
[1754814895740,3.2078,4214.9,4214.8,0.1837]
[1754814895935,1.2848,4215.9,4215.8,1.5855]
[1754814896136,3.2078,4216.0,4214.8,6.31736651]
[1754814896334,3.2078,4216.0,4215.9,0.9504]
[1754814897238,3.2078,4216.5,4216.0,0.47434]
[1754814897440,3.2078,4216.5,4216.1,0.9504]
[1754814897737,0.68,4216.4,4216.3,0.9504]
[1754814898338,0.2745,4216.4,4216.3,0.9504]
[1754814898533,0.2745,4216.4,4216.3,0.2759]
[1754814898534,0.68,4216.4,4216.3,0.2759]
[1754814899341,1.2848,4216.4,4216.3,0.1837]